{"text_format":"1","workbook":"xlsx","n_sheets":10,"sheets":["الرابع أ","الرابع ب","الرابع ج","الخامس أ","الخامس ب","الخامس ج","الخامس د","السادس أ","السادس ب","السادس ج"],"not_rendered":{"charts":0,"images":0,"macros":0,"external_links":0,"defined_names":0,"comments":0,"pivot_tables":0},"unopened":[],"bounds":{"document_bytes":16777216,"sheet_cells":100000,"rows_first":2000,"rows_last":500,"rows_between":2000,"halvings":0,"cell_chars":16384,"cell_head_chars":4096},"cells_cut":0,"cells_raw":0,"read":"whole","date_system":"1900"}

{"sheet":"الرابع أ","index":0,"n_rows":47,"n_cols":23,"rows_kept":47,"cut":false,"hidden":false,"merged":[]}
[null,null,null,null,null,null,null,null,null,null,null,null,null,"الرابع أ","fourthA"]
["ت","رقم القيد ","اسم التلميذ ","التربية الإسلامية","اللغة العربية ","الرياضيات","اللغة الإنكليزية","الاجتماعيات","العلوم ","التربية الفنية","التربية الرياضية","رقما","كتابة","  النتيجة ",null,"التربية الاسلامية\nReligion","اللغة العربية\nARABIC","الرياضيات\nMATH","اللغة الانكليزية\nENGLISH","الاجتماعيات\nSOCIAL","العلوم\nSCIENCE","التربية الفنية\nART","التربية الرياضية\nSPORT"]
[1,5931,"احمد ستار جبر حسن ",null,null,null,null,null,null,null,null,null,null,null,null,{"$f":"\"(\"&B3&\"FA\"&\"R\"&\")\"","v":"(5931FAR)"},{"$f":"\"(\"&B3&\"FA\"&\"A\"&\")\"","v":"(5931FAA)"},{"$f":"\"(\"&B3&\"FA\"&\"M\"&\")\"","v":"(5931FAM)"},{"$f":"\"(\"&B3&\"FA\"&\"E\"&\")\"","v":"(5931FAE)"},{"$f":"\"(\"&B3&\"FA\"&\"SO\"&\")\"","v":"(5931FASO)"},{"$f":"\"(\"&B3&\"FA\"&\"SC\"&\")\"","v":"(5931FASC)"},{"$f":"\"(\"&B3&\"FA\"&\"RT\"&\")\"","v":"(5931FART)"},{"$f":"\"(\"&B3&\"FA\"&\"SP\"&\")\"","v":"(5931FASP)"}]
[2,5722,"احمد عادل يحيى داود ",null,null,null,null,null,null,null,null,null,null,null,null,{"$f":"\"(\"&B4&\"FA\"&\"R\"&\")\"","v":"(5722FAR)"},{"$f":"\"(\"&B4&\"FA\"&\"A\"&\")\"","v":"(5722FAA)"},{"$f":"\"(\"&B4&\"FA\"&\"M\"&\")\"","v":"(5722FAM)"},{"$f":"\"(\"&B4&\"FA\"&\"E\"&\")\"","v":"(5722FAE)"},{"$f":"\"(\"&B4&\"FA\"&\"SO\"&\")\"","v":"(5722FASO)"},{"$f":"\"(\"&B4&\"FA\"&\"SC\"&\")\"","v":"(5722FASC)"},{"$f":"\"(\"&B4&\"FA\"&\"RT\"&\")\"","v":"(5722FART)"},{"$f":"\"(\"&B4&\"FA\"&\"SP\"&\")\"","v":"(5722FASP)"}]
[3,5769,"احمد نجم عبدل",null,null,null,null,null,null,null,null,null,null,null,null,{"$f":"\"(\"&B5&\"FA\"&\"R\"&\")\"","v":"(5769FAR)"},"(5769FAA)","(5769FAM)","(5769FAE)","(5769FASO)","(5769FASC)","(5769FART)","(5769FASP)"]
[4,5639,"جعفر صلاح حنون رحمة",null,null,null,null,null,null,null,null,null,null,null,null,"(5639FAR)","(5639FAA)","(5639FAM)","(5639FAE)","(5639FASO)","(5639FASC)","(5639FART)","(5639FASP)"]
[5,5640,"جود عباس جلال عسل",null,null,null,null,null,null,null,null,null,null,null,null,"(5640FAR)","(5640FAA)","(5640FAM)","(5640FAE)","(5640FASO)","(5640FASC)","(5640FART)","(5640FASP)"]
[6,5448,"حسن مصطفى علي رسه",null,null,null,null,null,null,null,null,null,null,null,null,"(5448FAR)","(5448FAA)","(5448FAM)","(5448FAE)","(5448FASO)","(5448FASC)","(5448FART)","(5448FASP)"]
[7,5641,"حسين محمد علوان رحمت",null,null,null,null,null,null,null,null,null,null,null,null,"(5641FAR)","(5641FAA)","(5641FAM)","(5641FAE)","(5641FASO)","(5641FASC)","(5641FART)","(5641FASP)"]
[8,5642,"حيدر اياد عبد الرزاق شمال",null,null,null,null,null,null,null,null,null,null,null,null,"(5642FAR)","(5642FAA)","(5642FAM)","(5642FAE)","(5642FASO)","(5642FASC)","(5642FART)","(5642FASP)"]
[9,5643,"حيدر صلاح حنون رحمة",null,null,null,null,null,null,null,null,null,null,null,null,"(5643FAR)","(5643FAA)","(5643FAM)","(5643FAE)","(5643FASO)","(5643FASC)","(5643FART)","(5643FASP)"]
[10,5725,"رضا حيدر محمد سالم ",null,null,null,null,null,null,null,null,null,null,null,null,"(5725FAR)","(5725FAA)","(5725FAM)","(5725FAE)","(5725FASO)","(5725FASC)","(5725FART)","(5725FASP)"]
[11,6102,"سداد كاظم عبد الكريم سعيد ",null,null,null,null,null,null,null,null,null,null,null,null,"(6102FAR)","(6102FAA)","(6102FAM)","(6102FAE)","(6102FASO)","(6102FASC)","(6102FART)","(6102FASP)"]
[12,5645,"سيف حيدر كامل سعدون ",null,null,null,null,null,null,null,null,null,null,null,null,"(5645FAR)","(5645FAA)","(5645FAM)","(5645FAE)","(5645FASO)","(5645FASC)","(5645FART)","(5645FASP)"]
[13,5800,"طه عبد القادر علي عبد القادر ",null,null,null,null,null,null,null,null,null,null,null,null,"(5800FAR)","(5800FAA)","(5800FAM)","(5800FAE)","(5800FASO)","(5800FASC)","(5800FART)","(5800FASP)"]
[14,5728,"علي الاكبر حسين علي",null,null,null,null,null,null,null,null,null,null,null,null,"(5728FAR)","(5728FAA)","(5728FAM)","(5728FAE)","(5728FASO)","(5728FASC)","(5728FART)","(5728FASP)"]
[15,5290,"علي الجواد احمد كريم",null,null,null,null,null,null,null,null,null,null,null,null,"(5290FAR)","(5290FAA)","(5290FAM)","(5290FAE)","(5290FASO)","(5290FASC)","(5290FART)","(5290FASP)"]
[16,5646,"علي حيدر انور علي اكبر",null,null,null,null,null,null,null,null,null,null,null,null,"(5646FAR)","(5646FAA)","(5646FAM)","(5646FAE)","(5646FASO)","(5646FASC)","(5646FART)","(5646FASP)"]
[17,6162,"علي ضياء محمد منير",null,null,null,null,null,null,null,null,null,null,null,null,"(6162FAR)","(6162FAA)","(6162FAM)","(6162FAE)","(6162FASO)","(6162FASC)","(6162FART)","(6162FASP)"]
[18,5088,"كرار عباس ستار ",null,null,null,null,null,null,null,null,null,null,null,null,"(5088FAR)","(5088FAA)","(5088FAM)","(5088FAE)","(5088FASO)","(5088FASC)","(5088FART)","(5088FASP)"]
[19,5764,"محمد مصطفى  طاهر ",null,null,null,null,null,null,null,null,null,null,null,null,"(5764FAR)","(5764FAA)","(5764FAM)","(5764FAE)","(5764FASO)","(5764FASC)","(5764FART)","(5764FASP)"]
[20,5648,"مصطفى عدي حنون رحمه",null,null,null,null,null,null,null,null,null,null,null,null,"(5648FAR)","(5648FAA)","(5648FAM)","(5648FAE)","(5648FASO)","(5648FASC)","(5648FART)","(5648FASP)"]
[21,5649,"مصطفى نوار لطيف كريم",null,null,null,null,null,null,null,null,null,null,null,null,"(5649FAR)","(5649FAA)","(5649FAM)","(5649FAE)","(5649FASO)","(5649FASC)","(5649FART)","(5649FASP)"]
[22,5650,"مهدي رعد ظاهر خضر ",null,null,null,null,null,null,null,null,null,null,null,null,"(5650FAR)","(5650FAA)","(5650FAM)","(5650FAE)","(5650FASO)","(5650FASC)","(5650FART)","(5650FASP)"]
[23,5651,"موسى سالار عادل فرحان",null,null,null,null,null,null,null,null,null,null,null,null,"(5651FAR)","(5651FAA)","(5651FAM)","(5651FAE)","(5651FASO)","(5651FASC)","(5651FART)","(5651FASP)"]
[24,5652,"يزن ميثم تركي محمد ",null,null,null,null,null,null,null,null,null,null,null,null,"(5652FAR)","(5652FAA)","(5652FAM)","(5652FAE)","(5652FASO)","(5652FASC)","(5652FART)","(5652FASP)"]
[25,5653,"يوسف محمد جاسم محمد",null,null,null,null,null,null,null,null,null,null,null,null,"(5653FAR)","(5653FAA)","(5653FAM)","(5653FAE)","(5653FASO)","(5653FASC)","(5653FART)","(5653FASP)"]
[26,6144,"بنين براء فلاح علي ",null,null,null,null,null,null,null,null,null,null,null,null,"(6144FAR)","(6144FAA)","(6144FAM)","(6144FAE)","(6144FASO)","(6144FASC)","(6144FART)","(6144FASP)"]
[27,5654,"جنة سعد علي ",null,null,null,null,null,null,null,null,null,null,null,null,"(5654FAR)","(5654FAA)","(5654FAM)","(5654FAE)","(5654FASO)","(5654FASC)","(5654FART)","(5654FASP)"]
[28,5271,"حوراء علي فلامرز ",null,null,null,null,null,null,null,null,null,null,null,null,"(5271FAR)","(5271FAA)","(5271FAM)","(5271FAE)","(5271FASO)","(5271FASC)","(5271FART)","(5271FASP)"]
[29,5655,"رحمه حسين جلال عسل",null,null,null,null,null,null,null,null,null,null,null,null,"(5655FAR)","(5655FAA)","(5655FAM)","(5655FAE)","(5655FASO)","(5655FASC)","(5655FART)","(5655FASP)"]
[30,4820,"رقيه حيدر جواد كاظم",null,null,null,null,null,null,null,null,null,null,null,null,"(4820FAR)","(4820FAA)","(4820FAM)","(4820FAE)","(4820FASO)","(4820FASC)","(4820FART)","(4820FASP)"]
[31,5733,"رقيه سعد داخل محمد ",null,null,null,null,null,null,null,null,null,null,null,null,"(5733FAR)","(5733FAA)","(5733FAM)","(5733FAE)","(5733FASO)","(5733FASC)","(5733FART)","(5733FASP)"]
[32,6084,"زهراء احمد محمد صادق تغلب",null,null,null,null,null,null,null,null,null,null,null,null,"(6084FAR)","(6084FAA)","(6084FAM)","(6084FAE)","(6084FASO)","(6084FASC)","(6084FART)","(6084FASP)"]
[33,5656,"زهراء اركان صلاح سيفي",null,null,null,null,null,null,null,null,null,null,null,null,"(5656FAR)","(5656FAA)","(5656FAM)","(5656FAE)","(5656FASO)","(5656FASC)","(5656FART)","(5656FASP)"]
[34,5657,"زهراء منير عبود مفتن",null,null,null,null,null,null,null,null,null,null,null,null,"(5657FAR)","(5657FAA)","(5657FAM)","(5657FAE)","(5657FASO)","(5657FASC)","(5657FART)","(5657FASP)"]
[35,5658,"زينب علي جبار محمد",null,null,null,null,null,null,null,null,null,null,null,null,"(5658FAR)","(5658FAA)","(5658FAM)","(5658FAE)","(5658FASO)","(5658FASC)","(5658FART)","(5658FASP)"]
[36,5659,"سجى حاتم كريم جواد",null,null,null,null,null,null,null,null,null,null,null,null,"(5659FAR)","(5659FAA)","(5659FAM)","(5659FAE)","(5659FASO)","(5659FASC)","(5659FART)","(5659FASP)"]
[37,5736,"شهد اياد سلمان مطلك",null,null,null,null,null,null,null,null,null,null,null,null,"(5736FAR)","(5736FAA)","(5736FAM)","(5736FAE)","(5736FASO)","(5736FASC)","(5736FART)","(5736FASP)"]
[38,5660,"فاطمه اسامة زامل حنون",null,null,null,null,null,null,null,null,null,null,null,null,"(5660FAR)","(5660FAA)","(5660FAM)","(5660FAE)","(5660FASO)","(5660FASC)","(5660FART)","(5660FASP)"]
[39,5661,"فاطمه صباح رحيم نوروز",null,null,null,null,null,null,null,null,null,null,null,null,"(5661FAR)","(5661FAA)","(5661FAM)","(5661FAE)","(5661FASO)","(5661FASC)","(5661FART)","(5661FASP)"]
[40,5662,"فاطمه مخلد هاشم عبد الحسين ",null,null,null,null,null,null,null,null,null,null,null,null,"(5662FAR)","(5662FAA)","(5662FAM)","(5662FAE)","(5662FASO)","(5662FASC)","(5662FART)","(5662FASP)"]
[41,5566,"ملاك رضا حسن شنين",null,null,null,null,null,null,null,null,null,null,null,null,"(5566FAR)","(5566FAA)","(5566FAM)","(5566FAE)","(5566FASO)","(5566FASC)","(5566FART)","(5566FASP)"]
[42,6165,"ميار علي حمودي محسن ",null,null,null,null,null,null,null,null,null,null,null,null,"(6165FAR)","(6165FAA)","(6165FAM)","(6165FAE)","(6165FASO)","(6165FASC)","(6165FART)","(6165FASP)"]
[43,5664,"نارڤين بشار حامد رحيم",null,null,null,null,null,null,null,null,null,null,null,null,"(5664FAR)","(5664FAA)","(5664FAM)","(5664FAE)","(5664FASO)","(5664FASC)","(5664FART)","(5664FASP)"]
[44,5664,"هاجر نصير سامي رضا ",null,null,null,null,null,null,null,null,null,null,null,null,"(5664FAR)","(5664FAA)","(5664FAM)","(5664FAE)","(5664FASO)","(5664FASC)","(5664FART)","(5664FASP)"]
[45,5666,"همسه ليث هيثم خلف",null,null,null,null,null,null,null,null,null,null,null,null,"(5666FAR)","(5666FAA)","(5666FAM)","(5666FAE)","(5666FASO)","(5666FASC)","(5666FART)","(5666FASP)"]

{"sheet":"الرابع ب","index":1,"n_rows":47,"n_cols":14,"rows_kept":47,"cut":false,"hidden":false,"merged":[]}
[null,null,null,null,null,null,null,null,null,null,null,null,null,"الرابع ب"]
["ت","رقم القيد ","اسم التلميذ ","التربية الإسلامية","اللغة العربية ","الرياضيات","اللغة الإنكليزية","الاجتماعيات","العلوم ","التربية الفنية","التربية الرياضية","رقما","كتابة","  النتيجة "]
[1,5778,"ابا الفضل حيدر مؤيد عبد الجليل "]
[2,5509,"احمد سلام حسين سالم"]
[3,5692,"احمد ماجد حسين محمد"]
[4,6085,"احمد مصطفى عباس خلف "]
[5,5767,"ادم علي ماجد عبد الهادي "]
[6,5667,"ايليا محمد عامر لطيف "]
[7,5668,"جعفر ياسر محمد امين محمد"]
[8,5542,"حسن حسان حسن حمود"]
[9,5260,"حسن فلاح مجيد "]
[10,5670,"رضا عبد الكاظم كريم رحمه"]
[11,5644,"سجاد سلام كاطع جوني "]
[12,5671,"عباس ياسر عازم حميد"]
[13,5727,"علي الاكبر حسين نوري "]
[14,5672,"علي حيدر كاظم كريم "]
[15,6087,"علي رضا محمد احمد جاسم "]
[16,5673,"علي صلاح جكو رومي"]
[17,5761,"علي فوزي علي "]
[18,5674,"علي لازم هاشم جار الـله"]
[19,5677,"مصطفى عبد الكريم سعيد "]
[20,6164,"مهيمن عمار حمزة عبد"]
[21,6088,"موسى محمد عبد جاس"]
[22,5762,"وسيم صدام غازي "]
[23,5121,"يوسف ارشد محمد"]
[24,5678,"بنين فؤاد سالم مراد "]
[25,5680,"الر محمد حسين مطرود"]
[26,5708,"رقية ثامر داود سالم"]
[27,5927,"رهف رائد هناوي "]
[28,5681,"ريتاج حسن وناس حمنيش"]
[29,5682,"زهراء ايهاب نجيب عبد المجيد "]
[30,5684,"زينب مصطفى ستار جبار"]
[31,5685,"سيلين وسام جليل حسن"]
[32,5276,"شهد رسول جبار محمد"]
[33,5615,"غفران صبحي علي"]
[34,5686,"فاطمة رضا حسن شنين"]
[35,6098,"فاطمه عباس حسن جاسم "]
[36,5737,"فرح احمد حميد جبر"]
[37,5738,"فرح فلاح غازي حمد"]
[38,5688,"كوثر خالد فريح ابو الهوش"]
[39,5739,"كوثر رعد سعد عبيد "]
[40,5740,"لارين جمال فرحان محمد "]
[41,5742,"مريم منذر نعمان فرحان"]
[42,6163,"ملاك علي عباس خلف "]
[43,5689,"ميامين عامر جبر وحيد "]
[44,5720,"نبأ ازاد برهان جراغ علي"]
[45,5690,"نبأ اياد حميد جبر "]

{"sheet":"الرابع ج","index":2,"n_rows":48,"n_cols":14,"rows_kept":48,"cut":false,"hidden":false,"merged":[]}
[null,null,null,null,null,null,null,null,null,null,null,null,null,"الرابع ج"]
["ت","رقم القيد ","اسم التلميذ ","التربية الإسلامية","اللغة العربية ","الرياضيات","اللغة الإنكليزية","الاجتماعيات","العلوم ","التربية الفنية","التربية الرياضية","رقما","كتابة","  النتيجة "]
[1,5765,"اوس عباس اوس عباس "]
[2,5723,"حسن عباس مهدي"]
[3,6099,"حسين حيدر جليل غيلان "]
[4,5918,"حسين حيدر كريم"]
[5,5693,"حسين صباح امير اينة"]
[6,6089,"حسين فاضل هليل صكر "]
[7,5694,"حيدر حسنين عدنان مذكور"]
[8,5547,"حيدر سجاد هادي"]
[9,5695,"حيدر عباس محمد كريم"]
[10,5084,"رضا عمار تركي محمد"]
[11,5751,"رضا هشام ليلو"]
[12,5261,"سجاد مهدي كاظم حسين"]
[13,5610,"سيف حيدر محمد عبد الله "]
[14,5697,"عباس مازن محمود حبيب"]
[15,5518,"عباس مؤيد محمد جمعه "]
[16,5698,"علي الأمير عدنان مذكور"]
[17,5729,"علي حسن علي رشيد "]
[18,4918,"فضل عباس جلال عسل"]
[19,5522,"قيصر علي خضير"]
[20,5699,"كميل رعد هادي حلو"]
[21,5700,"مجتبى اياد ماجد عبد الهادي"]
[22,5701,"مجتبى منتصر عبد الرضا "]
[23,6090,"محمد حيدر سلمان هاشم "]
[24,6161,"محمد مجتبى جابر سعد "]
[25,5702,"مسلم حسن علي بابا خان"]
[26,6091,"مقتدى عصام كاظم عباس "]
[27,5732,"موسى كاظم علي عيسى"]
[28,5749,"الاء محمد عبد المجيد"]
[29,5296,"رقية ارشد محمد جمعه"]
[30,5710,"ريناد حسين مجبل محمد"]
[31,5711,"زينب حسين ابراهيم عبد الباقي "]
[32,5712,"زينب حمزة قادر شامار"]
[33,5713,"زينب محمد جاسم محمد"]
[34,5714,"شاه زنان علي خليل ابراهيم "]
[35,5715,"فاطمه عقيل عبد الرضا علي"]
[36,5534,"فاطمه موسى عبد الحسين شنبار "]
[37,6092,"قمر موسى كاظم زغير "]
[38,5768,"لارين زيد حيدر عبد "]
[39,5716,"لانا حسين عبد الكريم حسن"]
[40,5717,"ليا نشأت محمد منير"]
[41,5921,"مريم احمد نعمة غانم "]
[42,5718,"ملاك علي عبد الحسين علي "]
[43,5719,"ملك حسام عبد الهادي "]
[44,5745,"نرجس اسعد حميد جبر"]
[45,5746,"نرجس حسن عبد الهادي محمد"]
[46,5721,"يقين محمد سلمان عطية"]

{"sheet":"الخامس أ","index":3,"n_rows":41,"n_cols":14,"rows_kept":41,"cut":false,"hidden":false,"merged":[]}
[null,null,null,null,null,null,null,null,null,null,null,null,null,"الخامس أ"]
["ت","رقم القيد ","اسم التلميذ ","التربية الإسلامية","اللغة العربية ","الرياضيات","اللغة الإنكليزية","الاجتماعيات","العلوم ","التربية الفنية","التربية الرياضية","رقما","كتابة","  النتيجة "]
[1,5000,"ابراهيم وسام محمد محسن"]
[2,5236,"ابو الحسن حيدر كريم محسن"]
[3,5444,"ابو الفضل محمد صالح حسن "]
[4,5445,"أمير جلال شحات السيد"]
[5,5446,"امير مصطفى محمد كاظم "]
[6,5573,"حسن سعد علي ارزوقي "]
[7,5447,"حسن سمير جمشير اسد"]
[8,6141,"حسن علي محمد"]
[9,5546,"حسين محمد علي يحيى كريم"]
[10,5450,"رضا حسام عبد الهادي شمخي"]
[11,6093,"رضا فراس علي جازع"]
[12,5623,"زين العابدين سامي جبار"]
[13,5451,"صادق عباس فاضل دفار"]
[14,5452,"عباس رعد ظاهر خضر"]
[15,5108,"عباس يعقوب فخري كاظم"]
[16,6157,"علي الرضا حيدر علي حسين "]
[17,6094,"علي عباس علي حياة "]
[18,6095,"علي عمار عبد الكاظم"]
[19,5456,"علي منير عبود مفتن"]
[20,5314,"علي محمد برهان"]
[21,5776,"محمد حربي ظاهر "]
[22,5929,"محمد حسين كريم عنبر"]
[23,5611,"محمد علي غضبان مراد"]
[24,5458,"مهدي سالار جليل حسن"]
[25,6097,"مهدي عمار عبد الكاظم"]
[26,5459,"ياسين علي عبد لطيف خليل"]
[27,5460,"يوسف اسماعيل محمد شاه محمد"]
[28,5250,"يوسف محمد قاسم جاسم"]
[29,6154,"يوسف ميثم محمد سويف "]
[30,5461,"يونس اسماعيل محمد شاه محمد"]
[31,5463,"رقيه فؤاد سايه مير نوروز"]
[32,5497,"ريماس فارس قادر ولي "]
[33,5599,"زهراء مهند هاشم "]
[34,5466,"طيبة محمد عبد الكريم رسول"]
[35,5467,"فاطمه الزهراء حسن جمعة"]
[36,5502,"لؤلؤه خضر عبد علي خضر"]
[37,5469,"ليان حسين صابر علي باشه "]
[38,5470,"مريم شهاب جبار ناصر "]
[39,6177,"هاجر حيدر ماجد محسن "]

{"sheet":"الخامس ب","index":4,"n_rows":38,"n_cols":14,"rows_kept":38,"cut":false,"hidden":false,"merged":[]}
[null,null,null,null,null,null,null,null,null,null,null,null,null,"الخامس ب"]
["ت","رقم القيد ","اسم التلميذ ","التربية الإسلامية","اللغة العربية ","الرياضيات","اللغة الإنكليزية","الاجتماعيات","العلوم ","التربية الفنية","التربية الرياضية","رقما","كتابة","  النتيجة "]
[1,5259,"احمد حيدر احمد عوده"]
[2,5476,"امير مسعود عبد الرحيم ابراهيم"]
[3,4778,"حسن محمد ابراهيم رحيم "]
[4,5477,"حسين احمد سعيد جاسم"]
[5,5478,"حسين عبد الكريم سعيد عزيز "]
[6,5479,"حيدر كرار حسن موري"]
[7,5285,"رضا كريم حسين محمد"]
[8,5480,"رضا محمد عبد الخالق امير"]
[9,5481,"سجاد خالد حسين الفت"]
[10,4944,"صادق حسين فلامرز شاه"]
[11,5330,"صادق عباس علي منصور"]
[12,5590,"عباس ابراهيم فلامرز"]
[13,5483,"عباس حسن راشد رضا"]
[14,5485,"علي احمد ماجد كاظم"]
[15,5630,"علي سعد معن جاسم "]
[16,5241,"علي صادق لفتة ليلو"]
[17,6153,"محمد رضا علي حسين محمد"]
[18,6137,"ياسر حيدر جمعة سالم"]
[19,5489,"بنين تحسين ياسين حبيب"]
[20,5777,"تالين صدام غازي"]
[21,5490,"جمانه علي حميد رحيم "]
[22,5093,"حنين موسى عبد الحسين شنبار"]
[23,5493,"ديمه حيدر مهدي خليل"]
[24,5774,"رحمه نجم عبد الله دنبوس"]
[25,5494,"رزان احمد حسين ضمد"]
[26,5607,"رقية انمار احمد كاظم"]
[27,5496,"رقيه وليد خلف حسين "]
[28,5773,"زهراء فراس عباس "]
[29,5498,"زهراء لبيد مجيد سلومي "]
[30,4962,"زينب حسين علي رحيمه"]
[31,6160,"فدك الزهراء خضر عبد الرحيم "]
[32,5503,"ليا علي كمال عبد الصاحب"]
[33,5504,"ملاك سوران رحمن زيدان "]
[34,5505,"نبأ عدنان شاتي اشنين"]
[35,5306,"نرجس قحطان داود سليمان"]
[36,5506,"هاجر ذو الفقار علي محمد"]

{"sheet":"الخامس ج","index":5,"n_rows":41,"n_cols":14,"rows_kept":41,"cut":false,"hidden":false,"merged":[]}
[null,null,null,null,null,null,null,null,null,null,null,null,null,"الخامس ج"]
["ت","رقم القيد ","اسم التلميذ ","التربية الإسلامية","اللغة العربية ","الرياضيات","اللغة الإنكليزية","الاجتماعيات","العلوم ","التربية الفنية","التربية الرياضية","رقما","كتابة","  النتيجة "]
[1,5750,"ابا الفضل محمد احمد "]
[2,5508,"احمد رامي سعدون خضير"]
[3,5511,"أمير حسين علي غلام"]
[4,5512,"جميل جمال جميل عبد المحسن"]
[5,5592,"حسن حازم معلعل"]
[6,5164,"حسن عدي حنون رحمه"]
[7,6156,"حسن علي عبد الجليل بخيت "]
[8,5513,"حسين حيدر خالد محمود"]
[9,5514,"حسين خالد زويد علي"]
[10,5312,"رضا محمد عبد المجيد حميد"]
[11,5515,"زيد اسامه عبد الرضا عسكر"]
[12,5779,"زيد جاسم محمد عودة "]
[13,5516,"زين العابدين حسن هادي حسن"]
[14,5550,"زين العابدين حسين علي رحيمة"]
[15,5748,"شهاب عقيل عبد الحسين"]
[16,5519,"عبد الرحمن حسين سعيد لفته"]
[17,6130,"عبد اللـة عبد الكريم سعيد عزيز"]
[18,6100,"علي قصي باجي ناصر"]
[19,5292,"محمد رضا علي حسين كريم"]
[20,5638,"محمد علي خالد فريح"]
[21,5523,"مرتضى كرار جعفر عبد الله"]
[22,5524,"مصطفى شوكت فرج نعمه"]
[23,6159,"ياسر عمار رعد"]
[24,5525,"يوسف علي ماجد عبد الهادي"]
[25,6152,"يوسف غسان جبار عبد النبي "]
[26,6155,"اديان ابراهيم عباس خلف "]
[27,5526,"افنان ايڤان مصطفى ياور "]
[28,5528,"تقى حسين صبيح شنيشل"]
[29,5273,"رهف عبد اللطيف محسن "]
[30,5529,"زهراء صادق عذاب خضير"]
[31,5300,"زينب فريد خلف حسين"]
[32,5530,"سما حسين باني مرعب"]
[33,5531,"فاطمه بيار حسين خطاب "]
[34,5532,"فاطمه عبد الحسن جازع صافي"]
[35,5536,"مريم عباس رحيم محمد "]
[36,5539,"ملك سيف حيدر محمد حسن"]
[37,5598,"نرجس سيد باقر كريم حنون "]
[38,6143,"نور الزهراء محمد عيسى ميرزا"]
[39,6317,"فدك حسين علي كمال"]

{"sheet":"الخامس د","index":6,"n_rows":38,"n_cols":14,"rows_kept":38,"cut":false,"hidden":false,"merged":[]}
[null,null,null,null,null,null,null,null,null,null,null,null,null,"الخامس د"]
["ت","رقم القيد ","اسم التلميذ ","التربية الإسلامية","اللغة العربية ","الرياضيات","اللغة الإنكليزية","الاجتماعيات","العلوم ","التربية الفنية","التربية الرياضية","رقما","كتابة","  النتيجة "]
[1,5308,"ابو الفضل رسول غيدان "]
[2,5593,"احمد سلام منخي حمود "]
[3,5604,"امير مخلد عبد شلتاغ"]
[4,5755,"حسن امير جمعة "]
[5,5544,"حسين احمد حسن جبار "]
[6,5545,"حسين قصي مسهر عبد"]
[7,6103,"حيدر نوري شكر محمود"]
[8,5396,"رضا فؤاد عبد السادة "]
[9,5552,"علي رضا غانم خالد خلاوي"]
[10,5771,"علي فراس حسن "]
[11,5553,"محمد علي مالك جبار "]
[12,5555,"مصطفى احمد امان غلام "]
[13,5556,"نمر علي احمد هجول"]
[14,5557,"بنين حيدر هجول مفتن"]
[15,5558,"بنين علي صادق فاضل"]
[16,5559,"تقى فلاح غازي حمد"]
[17,5270,"جمانه جعفر فرحان خلف"]
[18,5561,"جنه محمد ياسين عبد النبي "]
[19,5464,"رند احمد عزيز علي"]
[20,5465,"روان احمد سليمان داود"]
[21,6104,"روان حسين حميد عبد الله"]
[22,5564,"ريتاج عماد سعدي علوان"]
[23,5020,"زينب احمد جبار  خضير"]
[24,5178,"زينب عباس جلال"]
[25,5535,"فرح احمد حسن جليوي"]
[26,5627,"فاطمة جلال اسماعيل عبد المولى "]
[27,5772,"فاطمة هلال كاظم"]
[28,5770,"معصومة فراس حسن"]
[29,5537,"معصومه احمد جبار خضر"]
[30,5565,"ملاك دهام عايد علي"]
[31,5569,"منار احمد امان غلام "]
[32,5473,"نبأ حسين حميد برفي"]
[33,5567,"نور فلاح غازي حمد"]
[34,5568,"هلن شيركو جليل مصطفى"]
[35,5474,"يقين اياد جبار شاطي "]
[36,6176,"روان سلمان زغير سلمان"]

{"sheet":"السادس أ","index":7,"n_rows":40,"n_cols":14,"rows_kept":40,"cut":false,"hidden":false,"merged":[]}
[null,null,null,null,null,null,null,null,null,null,null,null,null,"السادس أ"]
["ت","رقم القيد ","اسم التلميذ ","التربية الإسلامية","اللغة العربية ","الرياضيات","اللغة الإنكليزية","الاجتماعيات","العلوم ","التربية الفنية","التربية الرياضية","رقما","كتابة","  النتيجة "]
[1,5332,"احمد حسين عطشان عبيد"]
[2,5780,"اسحاق غسان كريم عبد الرضا "]
[3,5622,"امير فؤاد ماجد عبد الهادي "]
[4,5230,"باقر علي محسن العيبي"]
[5,5207,"حسين حسن سعد طاهر"]
[6,6105,"حسين زيد احمد رمضان "]
[7,5310,"حسين نبيل سلمان عطيه"]
[8,5357,"حسين هادي حسين قادر"]
[9,4914,"عباس سالم داود سالم"]
[10,5313,"عباس فارس قادر ولي"]
[11,5263,"عباس مهند نوري عبد الحسن"]
[12,6146,"عبد الله احمد حيدر احمد"]
[13,5288,"عبد الله حسين جازع صافي"]
[14,5792,"عبد الله حسين علي حيدر"]
[15,5166,"علي الاكبر عماد هاشم حسين"]
[16,6106,"علي تحسين علي عبد "]
[17,5337,"علي سمير جمشير اسد"]
[18,5264,"كرار علي كمال عبد الصاحب"]
[19,5315,"مجتبى حسن حسين علي خان"]
[20,5265,"مرتضى احمد كاظم عطية"]
[21,5801,"موسى صادق قاسم حنتوش"]
[22,5268,"موسى علي مهدي عبد الصاحب"]
[23,5318,"بنين محمد جاسم خلف"]
[24,6115,"جنه كريم حميد جبارة"]
[25,6107,"رفل جواد كاظم مطشر"]
[26,5781,"رقية حسين جلاب زوير "]
[27,6116,"رقية علي حطاب عبود "]
[28,5272,"رقيه طالب علي رومي"]
[29,5933,"رهف اسعد جميل عبود"]
[30,5252,"ريتاج حسين هاشم جلوب"]
[31,5411,"زينب حيدر علي فرج"]
[32,5253,"زينب فرحان سايه مير نوروز"]
[33,5335,"ساره حيدر عبد الستار  عبد الجبار "]
[34,5254,"سجى محمد سعدون شولي "]
[35,5612,"فاطمه حسن وناس حنيش"]
[36,5255,"فاطمه حسين يونس محمد"]
[37,5256,"مايا احمد عبد الرزاق مهدي"]
[38,5346,"مريم قاسم محمد علي جواد"]

{"sheet":"السادس ب","index":8,"n_rows":40,"n_cols":14,"rows_kept":40,"cut":false,"hidden":false,"merged":[]}
[null,null,null,null,null,null,null,null,null,null,null,null,null,"السادس ب"]
["ت","رقم القيد ","اسم التلميذ ","التربية الإسلامية","اللغة العربية ","الرياضيات","اللغة الإنكليزية","الاجتماعيات","العلوم ","التربية الفنية","التربية الرياضية","رقما","كتابة","  النتيجة "]
[1,5922,"اسحاق احمد نعمة غانم "]
[2,5237,"حسن سعيد شهاب عطوان"]
[3,5403,"حسنين محمد هجول مفتن"]
[4,5932,"حسين حاتم مجيد ناصر"]
[5,5284,"حسين فراس هاشم عبد المحسن"]
[6,5355,"حيدر مخلد هاشم عبد الحسين "]
[7,5759,"زيد علي نعيم سوير"]
[8,5287,"عباس حسيب شمخي جبر"]
[9,5637,"عبد العزيز حسن علي بابا خان "]
[10,5240,"عبد الله علي حسين علي"]
[11,5382,"علي احمد خالد ابراهيم"]
[12,5354,"فهد عامر جبر وحيد"]
[13,5429,"قاسم سعد علي كتيب"]
[14,5243,"كرار عطا الله عبد الرزاق طارش"]
[15,5291,"محمد حسين علي كاظم حلو"]
[16,5293,"محمد عباس محمد كريم نامي"]
[17,5373,"مرتضى محمد حسين مطرود"]
[18,5294,"مرتضى مؤيد اسد سيه"]
[19,4538,"مصطفى عمار تركي محمد"]
[20,5786,"مهدي حيدر مؤيد عبد الجليل "]
[21,5375,"يوسف جاسم محمد ميخان"]
[22,6118,"رقيه مصطفى عباس خلف "]
[23,5297,"ريتاج راغب كاطع خليفه"]
[24,5274,"ريتاج سجاد هادي حلو"]
[25,6120,"ريتاج منير خلف نادر "]
[26,5323,"ريحانة ابراهيم محمد رشم "]
[27,5352,"زينب علي عدنان توفبق"]
[28,5277,"عذراء ناطق علي  رومي"]
[29,6117,"فاطمة اسامة اسماعيل حسين"]
[30,5278,"فاطمه حيدر جاسم عبد الله"]
[31,5324,"فاطمه حيدر محمد سالم"]
[32,5303,"قمر حسيب شمخي جبر"]
[33,5930,"لجين حيدر محمد علي حسان"]
[34,5434,"مريم اسو محمد حسين سعيد "]
[35,5279,"مريم مؤيد كريم فاضل "]
[36,5257,"ملك ابراهيم صبري حسين"]
[37,5407,"ميار حسين مطر  حمدان"]
[38,5325,"نرجس ابراهيم جاسم عبد الله"]

{"sheet":"السادس ج","index":9,"n_rows":39,"n_cols":14,"rows_kept":39,"cut":false,"hidden":false,"merged":[]}
[null,null,null,null,null,null,null,null,null,null,null,null,null,"السادس ج"]
["ت","رقم القيد ","اسم التلميذ ","التربية الإسلامية","اللغة العربية ","الرياضيات","اللغة الإنكليزية","الاجتماعيات","العلوم ","التربية الفنية","التربية الرياضية","رقما","كتابة","  النتيجة "]
[1,6150,"ابا الفضل لؤي عدنان عبد الامام "]
[2,5333,"جون علي رحيم جنديل"]
[3,5238,"الحسن علي كامل سعدون"]
[4,5350,"حسن لازم هاشم جار الله"]
[5,6108,"حسين صدام غانم هند"]
[6,5408,"حسين علي ذياب سرحان "]
[7,6114,"حسين محمد اسماعيل حمود"]
[8,5262,"سعيد مازن سعيد جاسم"]
[9,6111,"عباس عقيل محمد عداي "]
[10,5371,"علي عمار عبد العال عبود"]
[11,5576,"علي هشام حسين عبد الكريم"]
[12,5572,"كرار حسين علي محمد"]
[13,5431,"كرار حيدر طالب حسن "]
[14,5602,"كرار حيدر كامل  علي خان"]
[15,5244,"ليث نشأت محمد منير عبد الرسول"]
[16,5246,"محمد الجواد سلام كاظم سالم"]
[17,5928,"مصطفى رائد هناوي سعدون"]
[18,5571,"منتظر حسين علي محمد"]
[19,6112,"منتظر موسى كاظم زغير"]
[20,5267,"مهدي مصطفى عبد الكريم حلو "]
[21,6149,"وسام غسان جبار عبد النبي "]
[22,5249,"يوسف حسين محمد كاظم"]
[23,6151,"بنين ماجد ولي علي "]
[24,5412,"رحمة حسين جلوب كاظم  "]
[25,5428,"رزان انور رشيد حسن "]
[26,5251,"رقيه حيدر عبد الحسين شنبار"]
[27,5320,"رقيه محمد علي يحيى كريم"]
[28,5322,"روز مصطفى صباح حمدان"]
[29,5345,"زينب قصي مسهر عبد"]
[30,5301,"سوزان باسم داود سليمان"]
[31,6109,"فاطمة صدام غانم هند"]
[32,5302,"فاطمه محمد جاسم محمد "]
[33,5304,"مينا راضي محمد حسن"]
[34,5305,"نرجس عباس محمد كريم "]
[35,5105,"هاجر حسان حسن حمود"]
[36,5307,"هاجر حيدر حسن علي "]
[37,5326,"هناس شيركو جليل مصطفى"]